bitfinex/quotes_ETHUSD_20260304
["timestamp","ask_amount","ask_price","bid_price","bid_amount"]
[1772652038575,1.13781176,2197.2,2195.7,0.001]
[1772652038961,5.926664,2197.3,2195.7,0.001]
[1772652039169,1.13776411,2197.3,2195.7,1.204]
[1772652039488,1.13776411,2197.3,2195.8,1.203]
[1772652039995,1.13776411,2197.3,2195.7,0.001]
[1772652040168,1.13776411,2197.3,2195.7,1.204]
[1772652040569,1.13776411,2197.3,2195.8,1.1385372]
[1772652041367,9.3399398,2197.4,2195.8,1.1385372]
[1772652041368,5.926641,2197.4,2195.8,1.1385372]
[1772652041895,5.426641,2197.4,2195.8,1.1385372]
[1772652042467,5.426641,2197.4,2195.7,0.001]
[1772652042687,5.38111689,2197.4,2195.7,0.001]
[1772652042890,1.13774111,2197.4,2195.7,0.001]
[1772652043063,1.13774111,2197.4,2195.8,2.97084349]
[1772652043267,1.13774111,2197.4,2195.9,0.40160104]
[1772652043467,1.13774111,2197.4,2195.7,4.86173938]
[1772652043667,1.13774111,2197.4,2195.8,2.96812966]
[1772652043868,4.78889989,2197.2,2195.7,0.001]
[1772652044196,1.224,2197.1,2195.7,0.001]
[1772652044501,4.78889989,2197.0,2195.7,0.001]
[1772652044724,1.13796713,2196.9,2195.7,0.001]
[1772652046396,1.13781176,2197.2,2195.8,2.9898325]
[1772652046633,1.13965642,2197.5,2196.0,1.13843351]
[1772652046902,5.92855631,2197.5,2195.8,1.1385372]
[1772652047124,5.92855631,2197.5,2195.9,2.58994132]
[1772652047271,4.78889989,2197.3,2195.7,1.13955711]
[1772652047594,1.13965642,2197.5,2195.8,2.99426729]
[1772652047811,1.13965642,2197.5,2195.9,2.99426729]
[1772652048118,0.002,2197.5,2196.1,6.90896814]
[1772652048270,0.002,2197.5,2196.2,2.99426729]
[1772652048465,0.002,2197.5,2196.3,2.99426729]
[1772652048697,0.002,2197.5,2196.5,1.13817436]
[1772652048935,7.2106783,2198.4,2196.8,2.70840934]
[1772652048936,1.219,2198.4,2196.8,2.70840934]
[1772652049200,0.002,2199.0,2197.3,6.40524486]
[1772652049201,1.13889258,2199.0,2197.3,6.40524486]
[1772652049403,1.13889258,2199.0,2197.4,2.99366982]
[1772652049590,1.13889258,2199.0,2197.3,5.5490161]
[1772652049775,1.13889258,2199.0,2197.4,2.98816113]
[1772652050104,1.13890824,2199.0,2197.5,2.98816113]
[1772652050280,1.13890824,2199.0,2197.6,2.98816113]
[1772652050472,0.003,2198.1,2197.7,2.98816113]
[1772652050678,0.002,2199.0,2197.9,1.13744938]
[1772652050897,0.002,2199.0,2198.0,3.77451848]
[1772652051207,0.002,2199.0,2197.9,1.13744938]
[1772652051427,0.002,2199.0,2198.0,1.19]
[1772652051700,0.002,2199.0,2197.9,1.13744938]
[1772652051908,0.002,2199.0,2198.0,1.189]
[1772652052317,4.36998856,2199.0,2197.4,1.189]
[1772652052475,4.36998856,2199.0,2196.8,1.188]
[1772652052476,4.36798856,2198.9,2196.8,1.188]
[1772652052670,4.36798856,2198.7,2197.6,0.001]
[1772652053308,4.36798856,2198.5,2197.6,0.001]
[1772652053509,4.43352456,2198.2,2197.4,0.001]
[1772652053704,1.214,2198.6,2197.1,0.001]
[1772652053705,4.36798856,2197.8,2197.1,0.001]
[1772652053911,4.36798856,2197.8,2195.7,0.001]
[1772652053912,4.36798856,2197.7,2195.7,0.001]
[1772652054212,4.36798856,2197.7,2195.8,2.58024923]
[1772652054403,4.36798856,2197.7,2195.7,2.3255884]
[1772652054608,1.13760465,2197.6,2195.9,1.13848535]
[1772652055029,0.002,2198.8,2196.4,0.065536]
[1772652055232,1.13898836,2198.8,2196.6,4.3570161]
[1772652055432,1.13898836,2198.8,2197.1,4.3570161]
[1772652055433,0.002,2198.8,2197.1,4.3570161]
[1772652055635,0.002,2198.8,2197.4,6.41434934]
[1772652055936,0.002,2198.8,2197.5,10.57384427]
[1772652056114,1.13901517,2198.8,2197.6,3.75666655]
[1772652056442,1.13901517,2198.8,2197.1,1.184]
[1772652056618,1.13901517,2198.8,2197.2,2.57210624]
[1772652056818,0.002,2198.8,2197.3,4.89374246]
[1772652057011,0.002,2198.8,2197.4,2.57127385]
[1772652057206,0.002,2198.8,2197.3,2.32175997]
[1772652057736,4.52613523,2199.1,2197.4,2.57035735]
[1772652057940,4.52613523,2199.1,2197.3,2.32175997]
[1772652058241,1.1368287,2199.1,2197.4,3.75291359]
[1772652058421,1.1368287,2199.1,2197.5,2.56991359]
[1772652058734,4.54731481,2199.2,2197.7,1.13755289]
[1772652060620,3.73374151,2199.8,2197.8,2.56633499]
[1772652060621,1.13651861,2199.7,2197.8,2.56633499]
[1772652060866,5.50450717,2199.7,2197.7,5.49456899]
[1772652061152,4.36798856,2199.6,2197.8,1.18]
[1772652061318,4.36798856,2199.3,2197.2,1.13777172]
[1772652061523,4.36798856,2199.1,2197.2,1.13777172]
[1772652061950,1.205,2199.2,2196.6,3.23633324]
[1772652061951,4.36798856,2198.7,2196.6,3.23633324]
[1772652062251,4.36798856,2198.7,2196.6,1.179]
[1772652062548,4.36798856,2198.7,2196.6,1.13812103]
[1772652062851,1.13708723,2198.6,2196.8,1.13801893]
[1772652063146,4.36798856,2198.5,2196.8,1.13801893]
[1772652063724,4.36798856,2198.5,2196.7,2.31603083]
[1772652064647,4.36798856,2198.5,2196.6,1.176]
[1772652064850,1.13719068,2198.4,2196.3,4.55290475]
[1772652065156,4.36798856,2198.3,2196.4,1.176]
[1772652065723,4.36798856,2198.3,2196.3,4.55290475]
[1772652065950,4.36798856,2198.3,2196.9,0.001]
[1772652066950,5.5052827,2198.2,2196.9,0.001]
[1772652067126,4.36798856,2198.1,2196.9,0.001]
[1772652067647,4.36798856,2198.1,2196.6,0.001]
[1772652067850,4.36798856,2197.9,2196.6,0.001]
[1772652068021,4.36798856,2197.7,2196.6,0.001]
[1772652068221,4.36798856,2197.4,2196.4,0.001]
[1772652068439,4.36798856,2196.9,2195.7,0.001]
[1772652068653,2.05057919,2197.0,2195.5,0.001]
[1772652068654,4.36798856,2196.5,2195.5,0.001]
[1772652068850,4.36798856,2196.3,2195.5,0.001]
[1772652069053,4.36798856,2196.1,2195.3,0.001]
[1772652069617,4.36798856,2196.1,2195.0,0.001]
[1772652069820,1.13832984,2196.2,2195.0,0.001]
[1772652069821,4.36798856,2195.9,2195.0,0.001]
[1772652070441,1.13832984,2196.2,2195.0,0.001]
[1772652070640,4.36798856,2195.9,2195.0,0.001]
[1772652070952,5.50662947,2195.6,2193.7,5.49660683]
[1772652071249,4.36798856,2195.5,2193.4,2.30178298]
[1772652071448,1.13864091,2195.6,2193.4,1.13978298]
[1772652071449,4.36798856,2195.3,2193.4,1.13978298]
[1772652071699,4.36798856,2195.1,2193.3,1.14082048]
[1772652072827,0.14948499,2195.5,2193.3,5.49783658]
[1772652073127,1.13874464,2195.4,2193.5,1.13973102]
[1772652073324,4.36798856,2195.3,2193.5,1.13973102]
[1772652073861,4.36798856,2195.3,2193.3,0.001]
[1772652073862,4.36798856,2194.7,2193.3,0.001]
[1772652074023,4.51747355,2194.3,2191.9,1.14053294]
[1772652074222,4.51747355,2194.3,2191.6,1.161]
[1772652074223,0.14948499,2193.6,2191.6,1.14066706]
[1772652074449,4.51747355,2193.6,2191.4,4.56316086]
[1772652074957,4.51747355,2193.6,2190.8,1.14113565]
[1772652074958,4.36798856,2192.9,2190.8,1.14113565]
[1772652075128,4.36798856,2192.9,2190.8,5.49815175]
[1772652075759,4.03551175,2192.9,2190.8,5.49815175]
[1772652076137,1.13999088,2193.0,2190.1,4.56599211]
[1772652076138,4.36798856,2192.5,2190.1,4.56599211]
[1772652076467,4.36798856,2192.5,2190.0,1.14155251]
[1772652076468,4.36798856,2192.1,2190.0,1.14155251]
[1772652076838,4.36798856,2192.6,2190.1,4.3570161]
[1772652077039,4.36798856,2192.6,2189.8,4.56621004]
[1772652077040,4.36798856,2192.2,2189.8,5.72521004]
[1772652077255,4.36798856,2192.0,2189.9,1.159]
[1772652077633,4.51747355,2192.4,2190.0,5.5160161]
[1772652077827,4.36798856,2192.4,2190.3,4.3570161]
[1772652078531,1.14004286,2192.9,2190.5,4.38911381]
[1772652078830,1.14004286,2192.9,2190.7,4.38911381]
[1772652079042,1.13973102,2193.5,2191.1,4.38911381]
[1772652079236,1.13973102,2193.5,2191.3,4.38911381]
[1772652079461,1.13973102,2193.5,2191.4,1.158]
[1772652080342,5.35050457,2193.5,2191.5,1.158]
[1772652080856,5.35050457,2193.5,2191.6,4.38911381]
[1772652081077,5.35050457,2193.5,2191.7,1.14066706]
[1772652081254,1.13973102,2193.5,2191.7,6.68778087]
[1772652081559,1.13973102,2193.5,2191.7,5.52978087]
[1772652081931,1.13973102,2193.5,2191.8,1.158]
[1772652082132,4.55864961,2193.7,2191.9,4.38911381]
[1772652082329,4.55809289,2194.0,2191.7,1.14066706]
[1772652082643,0.14948499,2193.8,2191.7,1.14066706]
[1772652082843,4.21077355,2193.7,2191.7,1.14066706]
[1772652083054,1.13967906,2193.6,2191.6,4.56266824]
[1772652083253,1.13967906,2193.6,2191.6,8.95178205]
[1772652083435,1.13967906,2193.6,2191.7,4.38911381]
[1772652083635,1.13952322,2193.9,2191.7,4.38911381]
[1772652084382,1.13946835,2194.1,2192.3,4.38911381]
[1772652084666,1.13946835,2194.1,2192.5,4.38911381]
[1772652084827,1.13946835,2194.1,2192.2,2.54679671]
[1772652084828,1.13946835,2194.1,2192.6,5.54611381]
[1772652085340,7.1448717,2194.7,2192.7,1.14014685]
[1772652085341,1.13915975,2194.6,2192.7,1.14014685]
[1772652085664,5.3499333,2194.6,2192.7,1.14014685]
[1772652085831,4.21077355,2194.5,2192.7,2.29614685]
[1772652086249,4.21077355,2194.5,2192.8,1.156]
[1772652086736,4.21077355,2194.5,2192.7,1.14014685]
[1772652086938,1.13915975,2194.6,2192.2,2.54679671]
[1772652086939,4.20875858,2194.2,2192.3,1.14035487]
[1772652087138,4.14322258,2194.0,2192.5,1.14025085]
[1772652087567,4.14322258,2194.0,2192.4,5.71721121]
[1772652087568,4.14322258,2193.8,2191.9,1.155]
[1772652088274,4.14322258,2193.8,2192.0,1.155]
[1772652088645,4.14322258,2193.8,2191.7,4.56253325]
[1772652088967,4.14322258,2193.8,2191.0,0.066536]
[1772652088968,4.14322258,2193.3,2191.3,1.154]
[1772652089465,4.14322258,2193.1,2191.4,2.29482321]
[1772652091147,4.14322258,2193.1,2191.4,1.14082321]
[1772652091471,4.14322258,2192.7,2191.3,2.0]
[1772652092154,1.28947587,2193.0,2191.3,2.0]
[1772652092155,4.14322258,2192.5,2191.3,2.0]
[1772652092547,4.14322258,2192.5,2191.3,3.14087342]
[1772652092748,4.14322258,2192.9,2191.5,0.001]
[1772652093347,4.14322258,2192.7,2191.5,0.001]
[1772652093570,1.14009485,2192.8,2191.3,2.001]
[1772652093571,4.14322258,2192.5,2191.3,2.001]
[1772652095448,1.14030286,2192.4,2191.3,2.001]
[1772652096065,5.28352544,2192.4,2191.3,2.001]
[1772652096264,1.14030286,2192.4,2191.3,3.14186533]
[1772652096577,1.14030286,2192.4,2191.3,2.001]
[1772652096872,4.14322258,2192.3,2191.3,2.001]
[1772652097466,4.14322258,2192.1,2191.3,2.001]
[1772652098067,4.14322258,2192.1,2191.0,0.001]
[1772652098248,1.14040689,2192.2,2191.0,0.001]
[1772652098872,1.14040689,2192.2,2191.0,1.14202842]
[1772652099078,1.14040689,2192.2,2191.0,1.14202606]
[1772652099675,4.14322258,2192.3,2191.0,0.001]
[1772652101074,4.14322258,2192.1,2191.0,0.001]
[1772652101480,5.28373352,2192.0,2191.0,0.001]
[1772652102180,1.14051094,2192.0,2191.0,0.001]
[1772652102494,5.28373352,2192.0,2191.0,0.001]
[1772652102783,4.14322258,2191.9,2191.0,0.001]
[1772652103166,1.14051094,2192.0,2191.0,0.001]
[1772652103770,4.56204379,2192.1,2191.0,0.001]
[1772652103957,1.14014685,2192.7,2191.0,0.001]
[1772652104365,1.14014685,2192.7,2191.0,3.99392229]
[1772652104775,1.14014685,2192.7,2191.1,2.60335567]
[1772652104976,1.14014685,2192.7,2191.2,1.14]
[1772652105173,1.14014685,2192.7,2191.0,3.99392229]
[1772652105374,1.14014685,2192.7,2191.2,1.139]
[1772652105888,4.56077049,2192.8,2191.3,1.14087527]
[1772652106356,4.56077049,2192.8,2191.4,0.001]
[1772652106557,4.14522258,2192.5,2191.4,0.001]
[1772652107495,4.14322258,2192.4,2191.4,0.001]
[1772652107663,4.14322258,2192.4,2191.1,0.001]
[1772652107983,5.28357745,2192.3,2191.1,0.001]
[1772652109293,4.00681334,2191.6,2189.9,1.14157791]
[1772652109508,5.17581334,2191.5,2189.4,2.05219639]
[1772652109672,4.00681334,2192.0,2190.5,1.14228123]
[1772652110003,4.00681334,2191.8,2189.8,2.05219639]
[1772652110158,0.065536,2191.2,2188.8,3.65065334]
[1772652110361,4.15629833,2190.9,2188.8,3.65065334]
[1772652110555,4.15629833,2190.7,2188.8,3.65067956]
[1772652110786,4.15629833,2190.7,2188.8,1.14217525]
[1772652110987,4.15629833,2190.3,2188.7,0.52121264]
[1772652111294,4.15629833,2190.1,2188.7,0.52121264]
[1772652112108,0.14948499,2189.9,2188.7,0.52121264]
[1772652112261,4.15629833,2189.9,2188.7,0.52121264]
[1772652112460,4.00681334,2189.9,2188.7,0.52121264]
[1772652114192,4.00681334,2189.9,2187.6,1.129]
[1772652114193,4.00681334,2189.5,2187.6,1.129]
[1772652114392,4.00681334,2189.5,2187.6,1.123]
[1772652114904,4.15629833,2188.8,2186.9,5.35308103]
[1772652115064,4.15629833,2188.6,2186.9,5.35308103]
[1772652115498,4.15629833,2188.6,2186.5,6.47132405]
[1772652116020,4.00681334,2188.4,2186.4,1.14341607]
[1772652116297,1.14233493,2188.5,2186.1,6.47253325]
[1772652116298,4.15629833,2188.0,2186.1,6.47253325]
[1772652116517,4.15629833,2187.8,2185.9,2.26366625]
[1772652116800,4.00681334,2187.8,2185.9,5.35461047]
[1772652116997,4.15629833,2187.7,2185.9,5.35463308]
[1772652117202,4.15629833,2187.7,2186.0,1.119]
[1772652117496,4.00681334,2187.7,2186.1,4.20994422]
[1772652117870,4.00681334,2188.2,2186.1,4.20994422]
[1772652118277,1.14254375,2188.1,2186.3,4.20994422]
[1772652118600,4.00681334,2188.0,2186.4,1.12]
[1772652119575,4.00681334,2188.0,2186.3,4.20994422]
[1772652119873,4.56727447,2189.5,2186.5,4.20994422]
[1772652120096,8.57408781,2189.5,2187.4,4.20994422]
[1772652120299,4.00681334,2189.3,2187.4,4.20994422]
[1772652120497,4.00681334,2189.1,2187.4,4.20994422]
[1772652120689,4.15629833,2189.0,2187.3,1.112]
[1772652120890,5.71271878,2189.0,2187.2,4.20994422]
[1772652121194,4.00681334,2188.9,2187.2,4.20994422]
[1772652121401,4.00681334,2188.9,2187.0,1.111]
[1772652121402,9.71953212,2188.8,2187.0,1.111]
[1772652121728,9.71953212,2188.8,2187.1,4.20994422]
[1772652121899,5.71271878,2188.7,2187.1,4.20994422]
[1772652122103,5.71271878,2188.7,2186.4,1.14343212]
[1772652122104,4.15629833,2188.6,2186.5,4.20994422]
[1772652122280,4.00681334,2188.3,2186.6,1.14332754]
[1772652122803,5.71271878,2188.2,2186.6,1.14332754]
[1772652123299,5.71271878,2188.1,2186.7,4.20994422]
[1772652123497,1.14233493,2188.5,2186.7,4.20994422]
[1772652123498,5.71271878,2188.4,2186.7,4.20994422]
[1772652123903,1.14202183,2189.1,2186.7,4.20994422]
[1772652124073,6.85474061,2189.1,2186.7,4.20994422]
[1772652124273,6.85474061,2189.1,2186.8,1.14322297]
[1772652124472,6.85474061,2189.1,2186.9,4.20994422]
[1772652124897,6.85474061,2189.1,2187.0,4.20994422]
[1772652125101,6.85474061,2189.1,2187.2,4.20994422]
[1772652125401,6.85474061,2189.1,2187.2,3.68874557]
[1772652125608,5.71271878,2189.1,2187.2,3.68874557]
[1772652125982,4.56568728,2190.3,2187.7,4.20994422]
[1772652125983,1.14150038,2190.1,2187.7,4.20994422]
[1772652126289,1.14150038,2190.1,2188.0,1.14259597]
[1772652126501,1.35547727,2190.0,2188.1,4.20994422]
[1772652126803,1.35547727,2190.0,2188.3,4.20994422]
[1772652127384,1.35547727,2190.0,2188.4,1.112]
[1772652127586,1.35547727,2190.0,2188.5,5.32194422]
[1772652127783,1.35547727,2190.0,2188.6,4.20994422]
[1772652128187,1.14145299,2190.2,2188.6,4.20994422]
[1772652128522,1.35547727,2190.1,2188.8,4.20994422]
[1772652128696,4.00681334,2190.4,2188.8,1.113]
[1772652128885,4.00681334,2190.4,2188.7,1.14223054]
[1772652128886,4.00681334,2190.4,2188.9,1.113]
[1772652129085,1.14129194,2190.6,2188.9,1.113]
[1772652129086,4.00681334,2190.2,2188.9,1.113]
[1772652129291,5.36229061,2190.5,2188.9,1.113]
[1772652129493,4.00681334,2190.5,2188.9,1.113]
[1772652130718,6.50363465,2190.4,2189.0,1.113]
[1772652132019,4.00681334,2190.3,2188.6,1.113]
[1772652132236,0.14948499,2190.0,2188.1,1.14254375]
[1772652132400,4.00681334,2189.7,2188.1,1.14254375]
[1772652132724,4.00681334,2189.7,2188.1,2.25554375]
[1772652133714,4.00681334,2189.5,2188.1,1.14254375]
[1772652133912,4.00681334,2189.5,2187.8,1.113]
[1772652134119,4.00681334,2189.3,2187.8,1.113]
[1772652134795,4.00681334,2189.1,2187.8,1.113]
[1772652134995,4.00681334,2189.1,2187.6,1.1428049]
[1772652135318,4.00681334,2189.1,2187.5,1.14282617]
[1772652135526,4.00681334,2188.9,2187.6,1.113]
[1772652135826,4.00681334,2188.9,2187.3,1.113]
[1772652135827,4.00681334,2188.7,2187.3,1.113]
[1772652136231,4.00681334,2188.7,2186.9,1.14411842]
[1772652136232,4.00681334,2188.5,2186.9,0.001]
[1772652136432,4.15629833,2188.3,2186.9,0.001]
[1772652136732,4.15629833,2188.1,2186.9,0.001]
[1772652136927,4.15629833,2188.1,2186.1,0.001]
[1772652136928,4.00681334,2187.7,2186.1,0.001]
[1772652137509,4.00681334,2187.5,2186.1,0.001]
[1772652137708,4.00681334,2187.3,2186.1,0.001]
[1772652138416,5.36229061,2187.2,2186.1,0.001]
[1772652139531,1.35547727,2187.1,2186.1,0.001]
[1772652139731,1.14290939,2187.4,2186.1,0.001]
[1772652139732,10.22544918,2187.3,2186.1,0.001]
[1772652140031,4.298006,2187.2,2186.1,0.001]
[1772652140326,1.35547727,2187.1,2186.1,0.001]
[1772652140709,1.14296164,2187.4,2186.1,0.001]
[1772652140914,1.35547727,2187.2,2186.1,0.001]
[1772652141719,1.35547727,2187.1,2186.1,1.11]
[1772652142026,1.14254375,2188.1,2186.1,1.11]
[1772652142027,1.35547727,2187.6,2186.2,4.08134934]
[1772652142228,1.14254375,2188.1,2186.2,4.08134934]
[1772652142540,5.72617503,2188.3,2186.4,4.08134934]
[1772652142541,1.35547727,2187.9,2186.4,4.08134934]
[1772652142835,1.14228273,2188.6,2186.6,4.08134934]
[1772652143039,1.14228273,2188.6,2186.8,2.90659763]
[1772652143252,1.14228273,2188.6,2187.0,2.90659763]
[1772652143410,1.14228273,2188.6,2187.1,1.109]
[1772652143611,1.14228273,2188.6,2187.2,1.109]
[1772652143842,8.86711376,2188.7,2187.2,2.25199098]
[1772652144045,8.86711376,2188.7,2187.2,1.14299098]
[1772652144252,8.86711376,2188.7,2187.2,2.25199098]
[1772652144865,8.86711376,2188.7,2187.0,7.47865322]
[1772652144866,4.298006,2188.4,2187.0,1.14431378]
[1772652145148,4.56910776,2188.7,2187.1,9.14431378]
[1772652145149,4.298006,2188.3,2187.1,9.14431378]
[1772652145304,4.298006,2188.3,2186.7,1.098]
[1772652145930,4.298006,2188.3,2186.8,10.28753675]
[1772652145931,1.14249154,2188.2,2186.8,10.28753675]
[1772652146711,4.20605823,2188.1,2186.8,9.14431378]
[1772652147523,1.14249154,2188.2,2186.8,9.14431378]
[1772652148045,8.77540988,2188.5,2186.9,1.14317069]
[1772652148644,8.77540988,2188.5,2187.0,9.14431378]
[1772652148840,8.77540988,2188.5,2187.1,1.1]
[1772652149550,0.002,2187.9,2187.1,1.1]
[1772652150047,0.002,2187.9,2187.2,9.14431378]
[1772652150251,0.002,2187.9,2187.2,1.101]
[1772652150552,0.002,2187.9,2187.3,9.14431378]
[1772652150750,0.002,2187.9,2187.3,10.24531378]
[1772652150956,0.002,2187.9,2187.3,9.14431378]
[1772652152156,4.20805823,2187.9,2187.3,9.14431378]
[1772652153163,4.20805823,2187.9,2186.3,0.001]
[1772652153335,4.20605823,2187.5,2186.5,9.14431378]
[1772652153952,1.14290939,2187.4,2186.6,1.103]
[1772652154626,5.34894983,2187.5,2186.7,9.14431378]
[1772652154826,5.348918,2187.5,2186.7,9.14431378]
[1772652155068,0.002,2187.9,2186.7,9.14431378]
[1772652155281,0.002,2187.9,2186.6,1.103]
[1772652155282,5.35060855,2188.1,2186.6,4.38733145]
[1772652155565,0.002,2188.1,2186.8,3.28433145]
[1772652155861,0.002,2188.1,2187.0,1.14311842]
[1772652156062,4.20805823,2188.1,2187.1,1.104]
[1772652156369,4.20805823,2188.1,2187.2,9.14231378]
[1772652157662,4.20805823,2188.1,2187.2,10.24731378]
[1772652157860,4.20605823,2187.9,2187.2,9.14231378]
[1772652158228,4.20605823,2187.9,2187.3,1.14231378]
[1772652158432,1.14259597,2188.0,2187.1,1.105]
[1772652158651,1.14259597,2188.0,2187.2,9.14231378]
[1772652159356,1.14259597,2188.0,2187.3,1.106]
[1772652159672,1.14458033,2188.1,2187.3,1.106]
[1772652159841,0.002,2188.1,2187.4,9.14231378]
[1772652160048,0.002,2188.1,2187.4,1.106]
[1772652160244,0.002,2188.1,2187.5,9.14231378]
[1772652160571,0.002,2188.1,2187.5,10.24931378]
[1772652161334,4.56846674,2189.0,2187.5,10.24931378]
[1772652161335,1.14228273,2188.6,2187.5,1.107]
[1772652161535,1.14228273,2188.6,2187.6,9.14031378]
[1772652161838,4.56876706,2188.8,2187.6,9.14031378]
[1772652162041,1.14217836,2188.8,2187.7,1.14275266]
[1772652162241,5.3482226,2188.9,2187.7,3.75843179]
[1772652162440,5.3482226,2188.9,2187.8,9.14031378]
[1772652162652,5.34818857,2188.9,2187.9,2.61454895]
[1772652162855,1.44947136,2189.1,2188.0,9.106]
[1772652163059,5.65552959,2189.1,2188.0,7.998]
[1772652163259,4.20605823,2189.0,2187.7,1.108]
[1772652163467,4.20605823,2188.8,2187.9,9.14031378]
[1772652163639,4.20605823,2188.8,2187.2,1.14296164]
[1772652163640,4.20605823,2188.6,2187.6,1.108]
[1772652164071,4.20605823,2188.4,2187.7,9.14031378]
[1772652164244,1.14233493,2188.5,2187.7,9.14031378]
[1772652164976,5.34839316,2188.5,2187.8,1.109]
[1772652165176,5.34839316,2188.5,2187.7,9.14031378]
[1772652165468,4.20605823,2188.4,2187.7,1.14231378]
[1772652165675,1.14233493,2188.5,2187.7,9.14031378]
[1772652166061,0.002,2188.6,2187.7,10.28305911]
[1772652166260,0.002,2188.6,2187.7,9.14031378]
[1772652166469,0.002,2188.6,2187.7,10.28304229]
[1772652166679,0.002,2188.6,2187.8,2.61723401]
[1772652166885,0.002,2188.6,2187.7,10.28304229]
[1772652167084,0.002,2188.6,2187.8,2.61718276]
[1772652167295,0.002,2188.8,2187.8,1.11]
[1772652167443,4.20605823,2189.8,2188.0,3.14185969]
[1772652167757,5.34774444,2189.8,2188.3,3.12999575]
[1772652167954,5.34774444,2189.8,2188.4,2.61631295]
[1772652168278,5.34774444,2189.8,2188.5,12.55923539]
[1772652168580,5.34774444,2189.8,2188.6,2.61631295]
[1772652168767,1.14160463,2189.9,2188.7,2.61631295]
[1772652168952,1.14160463,2189.9,2188.7,7.69058751]
[1772652169161,1.14160463,2189.9,2188.8,2.25331378]
[1772652169788,1.14160463,2189.9,2188.8,2.28140968]
[1772652170286,8.5934129,2190.1,2188.8,3.42354982]
[1772652170481,8.5934129,2190.1,2188.9,7.69058751]
[1772652170641,8.5934129,2190.1,2189.0,1.111]
[1772652170842,4.02699435,2190.0,2188.9,7.71868341]
[1772652171074,1.14347592,2190.2,2189.0,4.86098076]
[1772652171260,1.14347592,2190.2,2189.0,2.25331378]
[1772652171856,0.002,2190.2,2189.2,3.09507426]
[1772652172081,1.14346362,2190.2,2189.3,1.112]
[1772652172375,0.002,2190.2,2189.4,8.80258751]
[1772652172679,0.002,2190.2,2189.5,1.112]
[1772652173087,0.002,2190.2,2189.2,0.0280959]
[1772652173265,0.002,2190.2,2189.3,1.112]
[1772652173464,0.002,2190.2,2189.3,9.94490129]
[1772652174384,0.002,2190.2,2189.3,8.83290129]
[1772652174589,4.02899435,2190.2,2189.4,1.112]
[1772652174767,4.02899435,2190.2,2189.3,9.94490129]
[1772652175286,4.02899435,2190.2,2189.2,0.0280959]
[1772652175459,2.6022305,2189.9,2188.1,4.57006136]
[1772652175660,4.02699435,2189.8,2188.1,4.57006136]
[1772652176261,4.02699435,2189.6,2188.2,1.113]
[1772652176590,4.02699435,2189.6,2188.3,1.113]
[1772652178183,4.02699435,2189.6,2188.5,0.001]
[1772652178488,1.14181319,2189.5,2188.5,0.001]
[1772652179984,1.14181319,2189.5,2188.6,1.113]
[1772652180375,0.002,2189.7,2188.7,1.14223054]
[1772652181369,4.02899435,2189.7,2188.5,0.001]
[1772652181569,4.02899435,2189.7,2188.6,1.113]
[1772652182300,4.02899435,2189.7,2188.7,1.113]
[1772652182301,4.02699435,2189.5,2188.7,1.113]
[1772652182500,4.02699435,2189.5,2188.5,0.001]
[1772652184381,4.02699435,2189.3,2188.5,0.001]
[1772652185092,1.14186535,2189.4,2188.5,0.001]
[1772652186113,1.14176105,2189.6,2188.5,0.001]
[1772652187103,4.02699435,2189.6,2188.5,0.001]
[1772652187303,4.02699435,2189.6,2188.6,1.112]
[1772652187894,4.02699435,2189.6,2188.5,0.001]
[1772652189176,1.14181319,2189.5,2188.5,0.001]
[1772652189509,1.14181319,2189.5,2188.6,2.60905]
[1772652189696,1.14181319,2189.5,2188.7,2.60905]
[1772652189890,1.14181319,2189.5,2188.5,0.001]
[1772652190097,1.14181319,2189.5,2188.6,2.60774653]
[1772652190416,1.14181319,2189.5,2188.7,2.60774653]
[1772652190637,1.14181319,2189.5,2188.5,0.001]
[1772652190784,1.14181319,2189.5,2188.6,2.60964037]
[1772652191112,1.14181319,2189.5,2188.7,3.75183548]
[1772652191288,1.14181319,2189.5,2188.8,2.58679313]
[1772652191482,1.14181319,2189.5,2188.9,1.111]
[1772652192517,1.14181319,2189.5,2189.0,1.11]
[1772652192725,0.002,2189.4,2189.0,1.11]
[1772652193007,0.002,2189.4,2188.7,1.14319511]
[1772652193175,0.002,2189.4,2189.1,1.11]
[1772652193377,4.02899435,2189.4,2188.7,0.001]
[1772652195294,1.1419175,2189.3,2188.7,0.001]
[1772652195913,1.1419175,2189.3,2188.8,1.109]
[1772652196816,1.1419175,2189.3,2188.7,0.001]
[1772652196817,5.16891185,2189.3,2188.7,0.001]
[1772652197409,4.02699435,2189.2,2188.7,0.001]
[1772652197814,1.1419175,2189.3,2188.7,0.001]
[1772652198012,5.16891185,2189.3,2188.7,0.001]
[1772652198460,4.21964423,2189.2,2188.3,1.109]
[1772652199436,4.21964423,2189.2,2188.3,0.001]
[1772652199437,4.21964423,2189.0,2188.3,0.001]
[1772652200231,1.14202183,2189.1,2188.3,0.001]
[1772652200618,5.36166606,2189.1,2188.3,0.001]
[1772652200820,5.36166606,2189.1,2188.4,1.107]
[1772652201021,5.36166606,2189.1,2187.7,4.5705928]
[1772652201022,4.21964423,2189.0,2187.6,0.09042085]
[1772652201249,4.21964423,2189.0,2187.7,2.08265453]
[1772652201415,4.21964423,2188.8,2187.7,2.08265453]
[1772652201608,4.21964423,2188.8,2187.8,1.107]
[1772652202041,4.21964423,2188.8,2187.6,1.107]
[1772652202242,4.21964423,2188.8,2187.5,1.107]
[1772652203115,4.21964423,2188.8,2186.8,0.001]
[1772652203348,4.21964423,2188.0,2186.9,1.106]
[1772652203514,4.21964423,2187.8,2186.0,3.09718526]
[1772652203720,4.21964423,2186.1,2183.5,5.00971253]
[1772652203926,4.21964423,2185.9,2184.9,4.0]
[1772652204244,4.21964423,2185.5,2184.4,1.096]
[1772652204446,4.21964423,2185.3,2184.4,1.096]
[1772652204766,2.40470768,2186.0,2184.2,3.76378953]
[1772652205046,0.2354,2186.0,2184.3,1.37]
[1772652205216,0.2354,2186.0,2184.4,4.86078953]
[1772652205416,1.14369367,2185.9,2184.5,4.90821617]
[1772652206623,1.14369367,2185.9,2184.6,1.099]
[1772652206825,1.37906715,2186.0,2184.8,3.84160302]
[1772652207131,1.37906715,2186.0,2184.9,1.099]